bitfinex-derivatives/quotes_SOLF0:USTF0_20250816
["timestamp","ask_amount","ask_price","bid_price","bid_amount"]
[1755303927122,2.94,186.56,186.53,3.07474118]
[1755303927526,2.94,186.55,186.53,3.07474118]
[1755303927721,2.94,186.54,186.53,3.07474118]
[1755303927926,2.94,186.56,186.53,0.03474118]
[1755303928127,2.94,186.55,186.54,3.04]
[1755303928726,2.94,186.57,186.54,3.04]
[1755303929526,2.94,186.62,186.55,6.52922505]
[1755303930429,2.94,186.62,186.57,3.07606612]
[1755303930629,2.94,186.62,186.57,0.03606612]
[1755303931529,2.94,186.6,186.57,0.03606612]
[1755303932130,2.94,186.62,186.57,0.03606612]
[1755303932430,495.17290084,186.63,186.57,0.03606612]
[1755303932431,2.94,186.6,186.57,0.03606612]
[1755303933636,4.10388489,186.59,186.57,0.03606612]
[1755303933824,136.68,186.58,186.57,0.03606612]
[1755303934233,2.94,186.62,186.57,3.07606612]
[1755303934533,494.18,186.63,186.57,0.03606612]
[1755303934728,494.18,186.63,186.58,3.04]
[1755303934933,2.94,186.59,186.58,3.04]
[1755303935132,494.18,186.63,186.58,3.04]
[1755303935337,494.18,186.63,186.57,0.03606612]
[1755303935338,2.94,186.61,186.59,3.04]
[1755303935537,2.94,186.6,186.59,3.04]
[1755303935834,2.94,186.6,186.58,3.04]
[1755303936029,2.94,186.6,186.59,3.04]
[1755303936330,2.94,186.62,186.59,3.04]
[1755303936532,494.18,186.63,186.59,3.04]
[1755303936837,2.94,186.71,186.63,3.04]
[1755303937129,2.94,186.69,186.63,3.04]
[1755303938132,2.94,186.69,186.64,0.03767048]
[1755303938533,2.94,186.67,186.64,0.03767048]
[1755303938835,2.94,186.65,186.64,0.03767048]
[1755303939032,2.94,186.65,186.64,3.07767048]
[1755303939227,2.94,186.65,186.64,0.03767048]
[1755303941935,2.94,186.65,186.64,3.07767048]
[1755303942240,2.94,186.65,186.64,0.03767048]
[1755303947847,2.94,186.67,186.64,0.03767048]
[1755303948344,3.03,186.66,186.64,0.03767048]
[1755303949239,3.03,186.69,186.64,0.03767048]
[1755303949538,3.03,186.67,186.64,3.08767048]
[1755303949742,3.03,186.67,186.64,0.03767048]
[1755303950135,4.06634336,186.66,186.64,0.03767048]
[1755303950334,7.09634336,186.65,186.64,0.03767048]
[1755303953539,7.09634336,186.65,186.64,3.08767048]
[1755303954149,4.06634336,186.65,186.64,3.08767048]
[1755303954349,4.06634336,186.66,186.64,3.08767048]
[1755303954551,4.06634336,186.65,186.64,3.08767048]
[1755303955049,3.03,186.66,186.64,3.08767048]
[1755303955245,7.11071987,186.65,186.64,3.08767048]
[1755303956451,7.11071987,186.65,186.64,0.03767048]
[1755303957352,7.11071987,186.65,186.64,3.08767048]
[1755303959841,7.11071987,186.65,186.64,0.03767048]
[1755303960251,11.6512232,186.65,186.64,0.03767048]
[1755303960449,11.6512232,186.65,186.56,99.0]
[1755303960450,3.03,186.64,186.57,3.05]
[1755303960746,3.03,186.61,186.57,3.05]
[1755303960947,4.08071987,186.6,186.58,3.05]
[1755303961147,4.08071987,186.59,186.58,3.05]
[1755303962555,4.08071987,186.59,186.57,0.03591869]
[1755303962855,11.57387345,186.58,186.57,0.03591869]
[1755303963246,11.6686675,186.58,186.57,0.03591869]
[1755303963952,7.11071987,186.58,186.57,0.03591869]
[1755303964253,11.67408361,186.58,186.57,0.03591869]
[1755303965147,17.66812024,186.58,186.57,0.03591869]
[1755303967452,11.67408361,186.58,186.57,0.03591869]
[1755303968055,11.67408361,186.58,186.57,3.08591869]
[1755303969157,7.11071987,186.58,186.57,3.08591869]
[1755303970158,11.60720954,186.58,186.57,3.08591869]
[1755303971261,7.11071987,186.58,186.57,3.08591869]
[1755303972063,4.08071987,186.58,186.57,3.08591869]
[1755303972558,4.08071987,186.58,186.57,8.44201869]
[1755303973350,133.98,186.62,186.6,3.05]
[1755303973551,3.03,186.63,186.6,3.05]
[1755303974155,3.03,186.62,186.61,3.05]
[1755303975264,4.49648967,186.65,186.59,3.48922505]
[1755303975464,3.03,186.61,186.6,3.05]
[1755303975863,3.03,186.61,186.59,0.03395102]
[1755303984566,3.12,186.6,186.59,3.18395102]
[1755303985267,7.23849621,186.6,186.59,3.18395102]
[1755303985469,4.11849621,186.6,186.59,3.18395102]
[1755303986058,7.23849621,186.6,186.59,3.18395102]
[1755303988976,7.23849621,186.6,186.59,0.03395102]
[1755303990370,7.23849621,186.6,186.59,3.18395102]
[1755303990871,4.11849621,186.6,186.59,3.18395102]
[1755303991675,3.12,186.64,186.59,3.18395102]
[1755303991871,4.11921636,186.63,186.59,3.18395102]
[1755303992071,4.11921636,186.62,186.59,3.18395102]
[1755303992273,4.11921636,186.61,186.59,3.18395102]
[1755303992474,7.23964515,186.6,186.59,0.03395102]
[1755303993177,4.11964515,186.6,186.59,3.18395102]
[1755303993365,3.12,186.62,186.59,3.18395102]
[1755303993676,7.23970967,186.61,186.6,3.15]
[1755303995274,4.11970967,186.61,186.6,3.15]
[1755303995882,7.23970967,186.61,186.6,3.15]
[1755303997581,3.12,186.6,186.59,0.03395102]
[1755303997778,7.23970967,186.6,186.59,0.03395102]
[1755303999680,7.24692439,186.6,186.59,0.03395102]
[1755304001082,3.12,186.59,186.52,3.15]
[1755304001383,3.12,186.57,186.52,3.15]
[1755304001678,4.12692439,186.56,186.52,3.15]
[1755304001883,3.12,186.59,186.53,3.48922505]
[1755304002080,4.12767337,186.58,186.54,3.15]
[1755304002377,3.12,186.59,186.54,3.15]
[1755304002378,4.12767337,186.57,186.54,3.15]
[1755304002584,3.12,186.59,186.54,3.18383218]
[1755304002787,4.1280365,186.58,186.54,3.18383218]
[1755304003082,3.12,186.59,186.54,8.54073218]
[1755304003284,4.12796854,186.58,186.55,3.15]
[1755304003481,3.12,186.61,186.55,3.15]
[1755304003680,4.12897595,186.6,186.56,8.84532505]
[1755304003874,3.12,186.63,186.57,3.15]
[1755304004078,7.24882315,186.62,186.57,3.15]
[1755304004278,4.12882315,186.61,186.57,5.3558]
[1755304004479,4.12882315,186.6,186.58,3.15]
[1755304004679,4.12882315,186.59,186.58,3.15]
[1755304005079,4.12882315,186.59,186.58,8.5058]
[1755304005275,3.12,186.62,186.59,3.15]
[1755304005475,4.12979594,186.61,186.57,0.03562756]
[1755304005685,4.12979594,186.6,186.57,0.03562756]
[1755304005883,4.12990514,186.59,186.57,0.03562756]
[1755304006080,7.24990514,186.58,186.57,0.03562756]
[1755304006484,7.24990514,186.58,186.57,3.18562756]
[1755304009487,4.12990514,186.58,186.57,3.18562756]
[1755304010488,7.13990514,186.58,186.57,3.18562756]
[1755304010887,4.50485859,186.62,186.57,3.18562756]
[1755304010888,3.01,186.61,186.57,3.18562756]
[1755304011088,7.14106039,186.6,186.57,0.03562756]
[1755304011394,4.13106039,186.59,186.57,0.03562756]
[1755304011587,3.01,186.58,186.57,2.90562756]
[1755304013290,3.01,186.58,186.57,0.03562756]
[1755304013588,7.14161782,186.58,186.57,0.03562756]
[1755304014892,7.14161782,186.58,186.57,2.90562756]
[1755304017091,4.13161782,186.58,186.57,2.90562756]
[1755304018193,7.14161782,186.58,186.57,2.90562756]
[1755304019595,7.14161782,186.58,186.57,0.03562756]
[1755304019793,7.14161782,186.58,186.57,2.90562756]
[1755304019992,4.13161782,186.58,186.57,2.90562756]
[1755304020195,7.14161782,186.58,186.57,2.90562756]
[1755304020896,7.14297795,186.58,186.57,2.90562756]
[1755304021900,7.14297795,186.58,186.57,0.03562756]
[1755304025202,11.65241871,186.58,186.57,0.03562756]
[1755304025705,7.14297795,186.58,186.57,0.03562756]
[1755304027398,17.73453063,186.58,186.5,2.87]
[1755304027605,3.01,186.55,186.5,2.87]
[1755304027907,3.01,186.53,186.5,2.87]
[1755304028098,4.13297795,186.52,186.49,2.87]
[1755304028304,7.14833451,186.51,186.49,2.87]
[1755304028609,4.13844329,186.5,186.45,3.48922505]
[1755304028903,7.51915028,186.54,186.45,3.48922505]
[1755304028904,3.01,186.51,186.48,2.87]
[1755304029101,3.01,186.49,186.48,2.87]
[1755304030006,3.01,186.51,186.48,2.87]
[1755304030304,0.0359202,186.52,186.48,2.87]
[1755304030519,0.0359202,186.52,186.49,2.87]
[1755304031393,0.0359202,186.52,186.5,2.87]
[1755304032006,0.0359202,186.52,186.51,2.87]
[1755304032202,3.0459202,186.52,186.51,2.87]
[1755304033106,3.0459202,186.52,186.49,2.87]
[1755304033308,0.0359202,186.52,186.5,2.87]
[1755304033510,3.0459202,186.52,186.51,2.87]
[1755304036213,3.0459202,186.52,186.49,2.87]
[1755304036413,3.0459202,186.52,186.47,2.87]
[1755304036616,3.01,186.5,186.43,2.87]
[1755304036817,3.01,186.48,186.43,2.87]
[1755304037318,3.01,186.48,186.44,2.87]
[1755304037915,3.01,186.46,186.41,8.84972505]
[1755304038113,3.01,186.46,186.43,2.87]
[1755304038714,3.04620934,186.46,186.43,2.87]
[1755304039116,3.04620934,186.46,186.41,6.43922505]
[1755304039315,3.04620934,186.46,186.42,2.95]
[1755304039710,3.04620934,186.46,186.4,81.98600985]
[1755304040210,3.04620934,186.46,186.42,2.95]
[1755304041311,3.04620934,186.46,186.4,81.98600985]
[1755304041512,3.04620934,186.46,186.38,2.95]
[1755304041815,3.06,186.44,186.38,2.95]
[1755304043219,3.06,186.44,186.39,2.95]
[1755304043519,3.06,186.44,186.4,2.95]
[1755304044719,3.06,186.44,186.38,2.95]
[1755304044908,3.06,186.44,186.36,3.48922505]
[1755304044909,3.06,186.44,186.36,6.43922505]
[1755304045113,3.06,186.42,186.34,2.95]
[1755304045613,3.09598833,186.42,186.34,2.95]
[1755304046323,3.09598833,186.42,186.33,3.48922505]
[1755304046513,3.09598833,186.42,186.34,2.95]
[1755304047019,3.06,186.4,186.31,2.95]
[1755304047219,3.52521338,186.42,186.31,2.95]
[1755304047519,3.06,186.38,186.29,2.95]
[1755304047725,3.09742814,186.38,186.29,2.95]
[1755304048725,6.54922505,186.34,186.22,2.95]
[1755304048918,0.03742814,186.38,186.22,2.95]
[1755304048919,3.06,186.33,186.22,2.95]
[1755304049116,3.06,186.34,186.22,6.43922505]
[1755304049422,3.06,186.32,186.23,2.95]
[1755304049720,3.06,186.29,186.23,2.95]
[1755304050116,3.06,186.29,186.22,6.43922505]
[1755304050316,3.06,186.29,186.22,3.48922505]
[1755304050516,3.06,186.29,186.23,2.95]
[1755304052821,3.06,186.29,186.2,6.43922505]
[1755304053011,3.06,186.29,186.21,2.95]
[1755304053611,3.06,186.26,186.22,2.95]
[1755304053820,3.06,186.26,186.23,2.95]
[1755304054712,3.06,186.26,186.2,3.48922505]
[1755304054918,3.06,186.26,186.2,6.43922505]
[1755304055522,3.06,186.26,186.2,3.48922505]
[1755304055910,3.06,186.26,186.22,2.95]
[1755304056116,3.06,186.26,186.2,6.43922505]
[1755304056322,3.06,186.26,186.2,3.48922505]
[1755304056519,3.06,186.26,186.22,2.95]
[1755304057022,3.06,186.26,186.2,6.43922505]
[1755304057623,3.06,186.26,186.18,2.95]
[1755304058218,0.03613078,186.24,186.18,2.95]
[1755304058518,3.06,186.23,186.17,3.48922505]
[1755304058721,3.06,186.23,186.19,2.95]
[1755304059120,3.06,186.23,186.17,6.43922505]
[1755304059623,3.06,186.23,186.17,2.95]
[1755304062317,3.06,186.23,186.19,2.95]
[1755304062622,0.03613078,186.24,186.19,2.95]
[1755304062623,3.06,186.22,186.19,2.95]
[1755304063023,3.10107174,186.22,186.19,2.95]
[1755304063224,0.04107174,186.22,186.21,3.48922505]
[1755304063423,0.04107174,186.22,186.21,6.43922505]
[1755304065923,3.06,186.21,186.2,2.95]
[1755304066628,0.04107174,186.22,186.21,2.95]
[1755304067022,3.06,186.27,186.21,2.95]
[1755304067223,3.06,186.31,186.23,2.95]
[1755304067427,3.06,186.29,186.23,2.95]
[1755304068229,3.06,186.29,186.24,0.04104523]
[1755304068726,2.99,186.27,186.24,0.04104523]
[1755304069323,2.99,186.25,186.24,0.04104523]
[1755304069532,7.06775551,186.25,186.24,0.04104523]
[1755304069828,2.99,186.24,186.18,3.05]
[1755304070425,2.99,186.24,186.16,3.05]
[1755304071032,0.04030423,186.22,186.16,3.05]
[1755304071435,2.99,186.2,186.16,3.05]
[1755304072021,0.04030423,186.22,186.18,3.48922505]
[1755304072232,3.03030423,186.22,186.2,3.05]
[1755304072434,3.03030423,186.22,186.21,3.05]
[1755304073835,2.99,186.21,186.2,3.05]
[1755304074034,0.04030423,186.22,186.18,6.53922505]
[1755304074229,2.99,186.19,186.15,3.48922505]
[1755304074426,2.99,186.18,186.17,3.05]
[1755304075330,2.99,186.17,186.14,3.05]
[1755304076035,0.03942281,186.17,186.14,3.05]
[1755304076234,0.03942281,186.17,186.15,3.48922505]
[1755304076435,0.03942281,186.17,186.16,3.05]
[1755304076831,0.03942281,186.17,186.16,8.4178]
[1755304077032,2.99,186.25,186.16,3.05]
[1755304077329,2.99,186.23,186.19,3.05]
[1755304077629,7.07762106,186.22,186.21,3.05]
[1755304077832,2.99,186.24,186.18,8.85622505]
[1755304078029,4.44992745,186.28,186.22,3.05]
[1755304078231,2.99,186.23,186.22,3.05]
[1755304078534,7.07974023,186.23,186.22,3.05]
[1755304078935,7.07974023,186.23,186.21,0.03385551]
[1755304079135,2.99,186.22,186.21,0.03385551]
[1755304079737,4.44992745,186.27,186.21,0.03385551]
[1755304079935,2.99,186.23,186.22,3.05]
[1755304080241,4.0997717,186.23,186.22,3.05]
[1755304080439,4.44992745,186.3,186.22,3.05]
[1755304080632,2.99,186.28,186.22,3.05]
[1755304080834,2.99,186.26,186.21,0.03385551]
[1755304081128,2.99,186.24,186.21,0.03385551]
[1755304081330,2.99,186.22,186.21,0.03385551]
[1755304081531,2.99,186.24,186.21,3.52308056]
[1755304081835,2.99,186.27,186.23,3.05]
[1755304082027,4.44992745,186.28,186.21,6.57308056]
[1755304082028,2.99,186.25,186.21,6.57308056]
[1755304082226,2.99,186.23,186.21,6.57308056]
[1755304083437,2.99,186.23,186.22,3.05]
[1755304083639,7.10068773,186.23,186.22,3.05]
[1755304084039,2.99,186.22,186.21,0.03385551]
[1755304084234,7.10068773,186.22,186.21,0.03385551]
[1755304084439,7.10068773,186.22,186.21,3.08385551]
[1755304084735,2.99,186.25,186.21,3.08385551]
[1755304084938,7.1039706,186.24,186.21,3.08385551]
[1755304085135,4.1139706,186.23,186.22,3.05]
[1755304085338,7.1039706,186.23,186.22,3.05]
[1755304086736,2.99,186.22,186.21,0.03385551]
[1755304086933,7.1039706,186.22,186.21,0.03385551]
[1755304089934,2.99,186.22,186.21,0.03385551]
[1755304090140,11.60870075,186.22,186.21,0.03385551]
[1755304090434,7.1111186,186.22,186.21,0.03385551]
[1755304090738,2.99,186.21,186.14,3.05]
[1755304090940,2.99,186.19,186.14,3.05]
[1755304091144,4.1211186,186.18,186.14,3.05]
[1755304091337,4.1211186,186.18,186.1,3.48922505]
[1755304091338,2.99,186.16,186.11,3.05]
[1755304091536,4.1211186,186.15,186.11,3.05]
[1755304091737,2.99,186.18,186.11,3.05]
[1755304091942,4.12827064,186.17,186.11,3.05]
[1755304092235,4.12827064,186.16,186.1,3.48922505]
[1755304092442,4.12827064,186.15,186.13,3.05]
[1755304092637,2.99,186.17,186.13,3.05]
[1755304092944,4.1304885,186.16,186.13,3.05]
[1755304093243,4.1304885,186.15,186.13,3.05]
[1755304093434,4.1304885,186.14,186.13,3.05]
[1755304094344,3.02381263,186.15,186.1,8.85872505]
[1755304094646,2.99,186.13,186.12,3.05]
[1755304095042,3.02381263,186.15,186.11,3.05]
[1755304095846,2.99,186.14,186.12,3.05]
[1755304096045,2.99,186.14,186.13,3.05]
[1755304096945,0.03381263,186.15,186.13,3.05]
[1755304097249,0.03381263,186.15,186.1,3.48922505]
[1755304097545,0.03381263,186.15,186.13,6.53922505]
[1755304097844,0.03381263,186.15,186.14,3.05]
[1755304098547,2.97,186.21,186.14,2.92]
[1755304098845,2.97,186.19,186.17,2.92]
[1755304099437,2.97,186.19,186.18,2.92]
[1755304100143,2.97,186.23,186.16,6.44753542]
[1755304100344,2.97,186.2,186.18,2.92]
[1755304100544,2.97,186.19,186.18,2.92]
[1755304101844,2.97,186.18,186.17,2.92]
[1755304102440,2.97,186.18,186.16,3.52753542]
[1755304102648,2.97,186.17,186.16,3.52753542]
[1755304103248,2.97,186.17,186.16,6.44753542]
[1755304104145,2.97,186.17,186.16,3.52753542]
[1755304104847,2.97,186.17,186.16,0.03831037]
[1755304107948,2.97,186.17,186.16,2.95831037]
[1755304108144,2.97,186.23,186.16,2.95831037]
[1755304108343,2.97,186.21,186.16,6.44753542]
[1755304108549,2.97,186.21,186.17,2.92]
[1755304108749,4.13271273,186.2,186.16,3.52753542]
[1755304108948,2.97,186.19,186.16,6.44753542]
[1755304109145,138.40215207,186.25,186.16,6.44753542]
[1755304109342,2.97,186.18,186.16,6.44753542]
[1755304109548,138.40215207,186.25,186.16,6.44753542]
[1755304109748,2.97,186.17,186.16,6.44753542]
[1755304109947,2.97,186.17,186.16,0.03831037]
[1755304111452,7.11817973,186.17,186.16,0.03831037]
[1755304111951,2.97,186.17,186.16,2.95831037]
[1755304113151,4.50215207,186.23,186.16,2.95831037]
[1755304113353,4.14945337,186.22,186.17,3.48922505]
[1755304113548,4.14945337,186.21,186.17,6.40922505]
[1755304113849,4.14945337,186.2,186.17,6.40922505]
[1755304114052,4.14945337,186.19,186.17,6.40922505]
[1755304114253,4.50215207,186.23,186.17,6.40922505]
[1755304114452,4.14952727,186.22,186.17,6.40922505]
[1755304114652,4.14952727,186.21,186.17,6.40922505]
[1755304114954,4.14952727,186.2,186.17,3.48922505]
[1755304115158,2.97,186.18,186.17,3.48922505]
[1755304115851,2.97,186.18,186.17,6.40922505]
[1755304116556,2.97,186.22,186.18,2.92]
[1755304116745,2.97,186.24,186.21,3.48922505]
[1755304116951,7.13946196,186.23,186.22,2.92]
[1755304117453,4.16946196,186.23,186.21,3.52459846]
[1755304117754,2.97,186.24,186.21,6.44459846]
[1755304117952,133.9,186.25,186.22,2.92]
[1755304117953,4.16921963,186.23,186.22,2.92]
[1755304118354,133.9,186.25,186.21,3.52459846]
[1755304118554,136.87,186.25,186.24,6.40922505]
[1755304118750,136.87,186.25,186.24,3.48922505]
[1755304121555,136.87,186.25,186.24,6.40922505]
[1755304123959,133.9,186.25,186.24,6.40922505]
[1755304124258,136.87,186.25,186.24,6.40922505]
[1755304124861,133.9,186.25,186.24,6.40922505]
[1755304125961,136.87,186.25,186.24,6.40922505]
[1755304128965,133.9,186.25,186.24,6.40922505]
[1755304129161,3.15,186.28,186.25,2.91]
[1755304129356,3.15,186.29,186.25,2.91]
[1755304129759,3.15,186.29,186.26,2.91]
[1755304130262,3.15,186.28,186.27,2.91]
[1755304130465,7.29639645,186.28,186.27,2.91]
[1755304131368,3.15,186.28,186.27,6.39922505]
[1755304132865,3.15,186.28,186.27,2.91]
[1755304133168,7.29434335,186.28,186.27,2.91]
[1755304134164,136.93,186.3,186.27,2.91]
[1755304134362,4.14329662,186.29,186.27,2.91]
[1755304134570,136.93,186.3,186.27,2.91]
[1755304135568,3.15,186.29,186.26,3.48922505]
[1755304135769,3.15,186.29,186.28,2.91]
[1755304137374,3.15,186.28,186.27,2.91]
[1755304138169,133.78,186.3,186.27,2.91]
[1755304138371,133.78,186.3,186.28,2.91]
[1755304138571,3.15,186.29,186.28,2.91]
[1755304146176,133.78,186.3,186.28,2.91]
[1755304146377,19.59922505,186.4,186.25,0.0341604]
[1755304146378,3.15,186.36,186.3,2.91]
[1755304146573,4.13033671,186.35,186.3,2.91]
[1755304146777,136.85,186.36,186.32,2.91]
[1755304147480,3.15,186.35,186.32,2.91]
[1755304147682,3.15,186.35,186.34,3.48922505]
[1755304147980,3.15,186.35,186.34,6.39922505]
[1755304148977,136.85,186.36,186.35,2.91]
[1755304149277,140.9772619,186.36,186.35,2.91]
[1755304149680,136.85,186.36,186.35,2.91]
[1755304149881,140.97632269,186.36,186.35,2.91]
[1755304150082,136.85,186.36,186.35,2.91]
[1755304150277,140.97634059,186.36,186.35,2.91]
[1755304150484,136.85,186.36,186.35,2.91]
[1755304150679,3.15,186.35,186.31,3.52757986]
[1755304150876,4.12638122,186.34,186.31,0.03835481]
[1755304151080,3.15,186.32,186.31,0.03835481]
[1755304151281,136.83,186.32,186.31,0.03835481]
[1755304151786,136.83,186.32,186.31,2.94835481]
[1755304152282,133.68,186.32,186.31,2.94835481]
[1755304152690,136.83,186.32,186.31,0.03835481]
[1755304152873,140.95709582,186.32,186.31,0.03835481]
[1755304153075,140.95709582,186.32,186.25,2.91]
[1755304153279,3.15,186.3,186.25,2.91]
[1755304153682,4.12838449,186.29,186.25,2.91]
[1755304153985,3.15,186.26,186.25,2.91]
[1755304154383,3.18461082,186.27,186.26,2.91]
[1755304159289,7.31990101,186.27,186.26,2.91]
[1755304159984,0.03461082,186.27,186.26,2.91]
[1755304160487,2.96,186.33,186.26,3.45]
[1755304160692,2.96,186.33,186.29,3.48922505]
[1755304160892,2.96,186.33,186.3,2.9]
[1755304161790,2.96,186.33,186.3,2.93840764]
[1755304162592,4.13719028,186.32,186.3,2.93840764]
[1755304162793,2.96,186.33,186.3,2.93840764]
[1755304163090,4.13719028,186.32,186.3,2.93840764]
[1755304163288,2.96,186.33,186.3,2.93840764]
[1755304163689,133.64,186.35,186.3,2.93840764]
[1755304163888,7.09720511,186.34,186.3,2.93840764]
[1755304164092,4.13720511,186.33,186.3,2.93840764]
[1755304164290,133.64,186.35,186.3,2.93840764]
[1755304164493,2.96,186.33,186.3,0.03840764]
[1755304164698,2.96,186.31,186.3,0.03840764]
[1755304164993,7.09736871,186.31,186.3,0.03840764]
[1755304168091,4.13736871,186.31,186.3,2.93840764]
[1755304168888,4.13922896,186.31,186.3,2.93840764]
[1755304169292,2.96,186.34,186.3,2.93840764]
[1755304169493,4.13926835,186.33,186.3,2.93840764]
[1755304169691,2.96,186.34,186.3,2.93840764]
[1755304169896,4.13906318,186.33,186.3,2.93840764]
[1755304170095,2.96,186.34,186.3,2.93840764]
[1755304170295,4.13901887,186.33,186.31,2.9]
[1755304170496,7.09924185,186.32,186.31,2.9]
[1755304170697,4.13924185,186.32,186.31,2.9]
[1755304172297,4.13924185,186.32,186.3,0.03840764]
[1755304172597,2.96,186.31,186.3,2.93840764]
[1755304172895,133.64,186.35,186.3,2.93840764]
[1755304173096,133.64,186.35,186.31,2.9]
[1755304173097,2.96,186.32,186.31,2.9]
[1755304173298,7.09974716,186.32,186.31,2.9]
[1755304173900,2.96,186.31,186.3,0.03840764]
[1755304174093,7.09974716,186.31,186.3,0.03840764]
[1755304177899,7.09974716,186.31,186.26,2.9]
[1755304177900,11.59294982,186.31,186.26,2.9]
[1755304178103,2.96,186.29,186.26,2.9]
[1755304178303,2.96,186.27,186.26,2.9]
[1755304178504,7.09974716,186.27,186.26,2.9]
[1755304179102,4.13974716,186.27,186.26,2.9]
[1755304179505,4.5299366,186.32,186.26,2.9]
[1755304179700,4.14145153,186.31,186.26,2.9]
[1755304179907,2.96,186.29,186.26,2.9]
[1755304180206,4.14145153,186.28,186.23,3.48922505]
[1755304180400,4.14145153,186.27,186.25,2.9]
[1755304180607,7.10151308,186.26,186.25,2.9]
[1755304181909,4.14151308,186.26,186.2,3.48922505]
[1755304182205,0.03402141,186.28,186.21,2.9]
[1755304182206,2.96,186.27,186.21,2.9]
[1755304182405,2.96,186.25,186.21,2.9]
[1755304182902,2.96,186.27,186.21,2.9]
[1755304183103,2.96,186.24,186.21,2.9]
[1755304183405,133.59402141,186.28,186.21,2.9]
[1755304183596,4.14060794,186.27,186.21,2.9]
[1755304183800,4.14060794,186.26,186.21,2.9]
[1755304183998,2.96,186.25,186.21,2.9]
[1755304185612,133.59402141,186.28,186.21,2.9]
[1755304185908,2.96,186.26,186.21,2.9]
[1755304186108,2.96,186.25,186.21,2.9]
[1755304186309,133.59402141,186.28,186.21,2.9]
[1755304186310,2.96,186.27,186.21,2.9]
[1755304186509,4.13983955,186.26,186.21,2.9]
[1755304186810,2.96,186.27,186.21,2.9]
[1755304187010,2.96,186.25,186.21,2.9]
[1755304187309,133.59402141,186.28,186.21,2.9]
[1755304187310,2.96,186.27,186.21,2.9]
[1755304187609,2.96,186.27,186.2,8.85582505]
[1755304187610,2.96,186.23,186.2,3.48922505]
[1755304187810,2.96,186.23,186.22,2.9]
[1755304189310,0.03588928,186.24,186.22,2.9]
[1755304189808,3.14588928,186.24,186.22,2.9]
[1755304192414,3.14588928,186.24,186.23,3.05]
[1755304192906,3.14588928,186.24,186.2,6.53922505]
[1755304193409,3.14588928,186.24,186.21,3.05]
[1755304194806,3.11,186.22,186.21,3.05]
[1755304196918,0.03588928,186.24,186.18,3.05]
[1755304196919,3.11,186.23,186.18,3.05]
[1755304198221,4.13965781,186.22,186.18,3.05]
[1755304198418,3.11,186.23,186.18,3.05]
[1755304198618,3.11,186.21,186.18,3.05]
[1755304199320,0.03588928,186.24,186.18,3.05]
[1755304199321,3.11,186.23,186.18,3.05]
[1755304199619,3.11,186.2,186.18,3.05]
[1755304200220,3.11,186.2,186.07,10.7405]
[1755304200221,3.11,186.23,186.17,3.05]
[1755304200421,3.11,186.21,186.14,3.05]
[1755304200626,3.11,186.19,186.14,3.05]
[1755304200923,3.11,186.17,186.11,3.05]
[1755304202918,0.04043084,186.19,186.17,3.05]
[1755304203120,3.11,186.23,186.2,3.05]
[1755304203517,3.11,186.25,186.2,3.05]
[1755304203820,133.5,186.3,186.2,3.05]
[1755304203821,3.11,186.23,186.2,3.05]
[1755304204022,3.11,186.22,186.21,3.05]
[1755304205012,3.11,186.22,186.2,0.03521917]
[1755304205722,7.24811291,186.21,186.2,0.03521917]
[1755304207221,3.11,186.23,186.21,3.05]